Cogmind - Beta 16.1 @@@ ROGUE MODE // 2026.02.10 @ 19:14:22 Player: Null_error Result: Destroyed by G-34 Mercenary with Small Laser Performance ------------- Evolutions (1) 500 Regions Visited (2) 400 Robots Destroyed (25) 125 Value Destroyed (600) 600 Prototype IDs (0) 0 Alien Tech Used (0) 0 Bonus (0) 0 TOTAL SCORE: 1625 Bonus ------- None Cogmind --------- Core Integrity 0/400 Matter 300/300 Energy 99/100 System Corruption 0% Temperature Cool (6) Movement Rolling (80) Location -9/Materials Parts ------- > --- POWER (1) -------- (None) > --- PROPULSION (2) --- Wheel > --- UTILITY (4) ------ Visual Processing Unit Signal Interpreter Improved Targeting Computer > --- WEAPON (2) ------- (None) > --- INVENTORY (5) ---- Light Ion Engine Seismic Detector Improved Targeting Computer Shield Generator Peak State ------------ > --- POWER ------------ Light Nuclear Core > --- PROPULSION ------- Light Treads > --- UTILITY ---------- Visual Processing Unit Signal Interpreter Terrain Scanner Improved Targeting Computer > --- WEAPON ----------- Small Laser Particle Gun > --- INVENTORY -------- Light Ion Engine Wheel Seismic Detector Improved Targeting Computer Shield Generator [Rating: 13] Favorites ----------- Power Light Ion Engine Engine Light Ion Engine Power Core Light Nuclear Core Propulsion Light Treads Treads Light Treads Wheel Wheel Utility Improved Targeting Computer Device Seismic Detector Storage Small Matter Pod Processor Improved Targeting Computer Weapon Spread Laser Energy Gun Spread Laser Ballistic Gun Assault Rifle Build | -11 -10 -9 ------- Run | Yrd Mat Mat Slots Evolved 2 | . . 2 Power . | . . . Propulsion . | . . . Utility 2 | . . 2 Weapon . | . . . Parts Attached 23 | 8 5 10 Power 3 | 1 1 1 Engine 2 | 1 1 . Core 1 | . . 1 Reactor . | . . . Propulsion 5 | 2 . 3 Treads 3 | 1 . 2 Leg . | . . . Wheel 2 | 1 . 1 Hover . | . . . Flight . | . . . Utility 9 | 3 2 4 Device 5 | 3 . 2 Storage 1 | . . 1 Processor 3 | . 2 1 Hackware . | . . . Protection . | . . . Artifact . | . . . Weapon 6 | 2 2 2 Energy Gun 4 | . 2 2 Energy Cannon . | . . . Ballistic Gun 2 | 2 . . Ballistic Cannon . | . . . Launcher . | . . . Special Weapon . | . . . Impact Weapon . | . . . Slashing Weapon . | . . . Piercing Weapon . | . . . Special Melee Weapon . | . . . Unidentified Prototypes . | . . . Parts Lost 12 | . 2 10 Power 2 | . 1 1 Propulsion 4 | . 1 3 Utility 2 | . . 2 Weapon 4 | . . 4 Highest Loss Streak 3 | . 1 3 To Critical Strikes . | . . . Average Backups 4 | 2 4 4 Power . | . 1 1 Propulsion . | . 1 . Utility 1 | . 1 3 Weapon . | . . . Tool/Special . | . . . Unused Backups 3 | . . 3 Power 1 | . . 1 Propulsion . | . . . Utility 2 | . . 2 Weapon . | . . . Tool/Special . | . . . Average Slot Usage (%) 88 | . 95 81 Engine 9 | . 13 5 Core 2 | . . 5 Treads 12 | . 14 9 Wheel 6 | . 11 . Device 14 | . 17 10 Storage 1 | . . 2 Processor 18 | . 10 28 Energy Gun 22 | . 25 18 Peak Build Rating 13 | 10 11 13 Average Rating 9 | 6 9 11 On Entrance 5 | . 8 9 Avg Prop Armor Cover (%) 5 | 6 5 . Naked Turns . | . . . Heaviest Build 13 | 7 12 13 Greatest Support 40 | 20 20 40 Greatest Overweight (x) 4 | . . 4 Average Overweight (x) . | . . . Largest Inventory Capacity 5 | 5 5 5 Average Capacity 5 | 5 5 5 Most Carried 5 | 3 5 5 Average Carried 4 | 2 4 4 Final Capacity 5 | 5 5 5 Final Carried 5 | 3 5 4 Class Distribution -------------------- 83% | Mutant 16% | Scavenger-Mutant Dominant Class ---------------- Mutant | -10/Materials Mutant | -9/Materials Resources | -11 -10 -9 ----------- Run | Yrd Mat Mat Matter Collected 473 | 318 84 71 Remotely . | . . . Salvage Created 688 | 143 247 298 Parts 49 | 15 17 17 Haulers Intercepted . | . . . Recyclers Shooed 1 | . 1 . Parts Field Recycled . | . . . Retrieved Matter . | . . . Parts Self-Destructed . | . . . Prevented . | . . . Parts Restored . | . . . Kills | -11 -10 -9 ------- Run | Yrd Mat Mat Combat Hostiles Destroyed 18 | . 11 7 Guns 18 | . 11 7 Classes Destroyed 6 | 2 2 2 Tunneler 4 | 4 . . Recycler 2 | 1 1 . Watcher 1 | . . 1 Swarmer 6 | . 6 . Grunt 9 | . 5 4 Sentry 3 | . . 3 Best Kill Streak 5 | 5 4 3 Combat Bots Only 3 | . 3 2 Max Kills in Single Turn 2 | 1 2 1 Gunslinging 1 | . 1 . Exploded . | . . . Melee . | . . . Uniques/NPCs Destroyed . | . . . Combat | -11 -10 -9 -------- Run | Yrd Mat Mat Hostile Shots Fired 144 | . 59 85 Missed 39 | . 18 21 Hits 105 | . 41 64 Projectile 105 | . 41 64 Critical Strikes 1 | . . 1 Damage Taken 1477 | . 395 1082 Core 491 | . 85 406 Absorbed by Shields . | . . . Core Remaining (%) 83 | 100 66 . Volleys Fired 77 | 17 27 33 Largest 2 | 2 2 2 Hottest 130 | 40 130 130 Shots Fired 130 | 24 54 52 Gun 130 | 24 54 52 Cannon . | . . . Launcher . | . . . Special . | . . . Kinetic 24 | 24 . . Thermal 106 | . 54 52 Explosive . | . . . Electromagnetic . | . . . Robot Hit Streak 24 | 4 16 24 Robot Miss Streak 11 | 2 11 3 Penetration Max . | . . . Secondary Targets 1 | . 1 . Max Gunslinging Chain 1 | . 1 . Shots Hit Robots 95 | 18 36 41 Core Hits 73 | 6 41 26 Critical Kills . | . . . Critical Parts Destroyed . | . . . Critical Strikes . | . . . Melee Attacks . | . . . Impact . | . . . Slashing . | . . . Piercing . | . . . Sneak Attacks . | . . . Combat Hostiles . | . . . Follow-up Attacks . | . . . Damage Inflicted 1427 | 223 578 626 Guns 1286 | 223 473 590 Cannons . | . . . Explosions 102 | . 102 . Melee . | . . . Ramming 39 | . 3 36 Kinetic 223 | 223 . . Thermal 1063 | . 473 590 Explosive . | . . . Electromagnetic 102 | . 102 . Impact . | . . . Slashing . | . . . Piercing . | . . . Highest Corruption . | . . . Average Corruption . | . . . Corruption Purged . | . . . Corruption Blocked . | . . . Overload Shots . | . . . Overflow Damage . | . . . Projectiles . | . . . Explosions . | . . . Melee . | . . . Knockbacks 1 | . . 1 Impact 1 | . . 1 Kinetic . | . . . Secondary . | . . . Self-Inflicted Damage 12 | . . 12 Shots . | . . . Rammed 17 | . 2 15 Targets Rammed 17 | . 2 15 Kicked . | . . . Crushed . | . . . Highest Temperature 494 | . 494 285 Average Temperature 130 | . 161 89 Received Heat Transfer 642 | . 150 492 Effects 5 | . 3 2 Shutdowns 1 | . 1 . Energy Bleed 2 | . 2 . Interference 2 | . . 2 Siege Activations . | . . . Martial Activations . | . . . Shielding Activations . | . . . Robots Disrupted . | . . . Combat Hostiles . | . . . Robots Corrupted . | . . . Combat Hostiles . | . . . Parts Fried . | . . . Impact Corruptions . | . . . Robots Melted . | . . . Combat Hostiles . | . . . Parts Melted 1 | . . 1 Heat Transferred 1827 | . 590 1237 Parts Sabotaged . | . . . Parts Stolen . | . . . Parts Stripped . | . . . Power Chain Reactions . | . . . Alert | -11 -10 -9 ------- Run | Yrd Mat Mat Maximum Alert Level . | . . . Low Security (%) 100 | 100 100 100 Level 1 . | . . . Level 2 . | . . . Level 3 . | . . . Level 4 . | . . . Level 5 . | . . . High Security . | . . . Max Security . | . . . Peak Influence 144 | 10 144 75 Initial 48 | . . 48 Average 46 | 1 77 30 Influence Increases 561 | 25 324 212 Destroy 0b10 Robot/C 360 | . 220 140 Destroy 0b10 Robot/NC 35 | 25 5 5 Destroy Leader 92 | . 40 52 Successful Hack 14 | . 14 . Disable Machine 45 | . 45 . Lose Combat Pursuer 15 | . . 15 Influence Decreases 561 | 25 208 328 Entered New Map 68 | . . 68 Time Decay 403 | 25 188 190 Lost Part 90 | . 20 70 Squads Dispatched 4 | . 3 1 Investigation 3 | . 2 1 Extermination . | . . . Reinforcement 1 | . 1 . Assault . | . . . Garrison . | . . . Intercept . | . . . Searches Triggered . | . . . Construction Impeded . | . . . Haulers Reinforced . | . . . Active Scanning Responses . | . . . Cargo Convoy Interrupts . | . . . Stealth | -11 -10 -9 --------- Run | Yrd Mat Mat Distress Signals 2 | . . 2 Communications Jammed . | . . . Distress Signals . | . . . Times Spotted 27 | . 13 14 Peak Tracking Total 6 | . 6 5 Tactical Retreats 1 | . . 1 Traps | -11 -10 -9 ------- Run | Yrd Mat Mat Traps Triggered 1 | . 1 . Indirectly 1 | . 1 . Trap Hack Attempts . | . . . Triggered . | . . . Disarmed . | . . . Reprogrammed . | . . . Reused . | . . . Traps Extracted . | . . . Installed . | . . . Triggered . | . . . Machines | -11 -10 -9 ---------- Run | Yrd Mat Mat Machines Disabled 3 | . 3 . Max in Single Turn 2 | . 2 . Machines Repaired . | . . . Machines Dismantled . | . . . Machines Sabotaged . | . . . Overloaded Fab Kills . | . . . Hacking | -11 -10 -9 --------- Run | Yrd Mat Mat Machines Accessed 3 | . 2 1 Terminals 3 | . 2 1 Fabricators . | . . . Repair Stations . | . . . Recycling Units . | . . . Scanalyzers . | . . . Garrison Access . | . . . Total Hacks 8 | . 7 1 Successful 3 | . 3 . Failed 4 | . 3 1 Catastrophic 1 | . . 1 Database Lockouts 1 | . 1 . Manual 10 | . 9 1 Terminals 8 | . 7 1 Fabricators . | . . . Repair Stations . | . . . Recycling Units . | . . . Scanalyzers . | . . . Garrison Access . | . . . Terminal Hacks 3 | . 3 . Record 1 | . 1 . Robot Analysis 2 | . 2 . Fabricator Hacks . | . . . Repair Station Hacks . | . . . Recycling Unit Hacks . | . . . Scanalyzer . | . . . Garrison Access Hacks . | . . . Unauthorized Hacks . | . . . Terminals . | . . . Fabricators . | . . . Repair Stations . | . . . Recycling Units . | . . . Scanalyzers . | . . . Garrison Access . | . . . Data Cores Recovered . | . . . Used . | . . . Hacking Detections 3 | . 2 1 Full Trace Events 2 | . 1 1 Feedback Events . | . . . Feedback Blocked . | . . . Robot Schematics Acquired . | . . . Robots Built . | . . . Authchips . | . . . Time . | . . . Total Robot Build Rating . | . . . Part Schematics Acquired . | . . . Parts Built . | . . . Authchips . | . . . Time . | . . . Total Part Build Rating . | . . . Part Studies Acquired . | . . . Parts Repaired . | . . . Time . | . . . Parts Recycled . | . . . Recycled Matter . | . . . Retrieved Matter . | . . . Retrieved Components . | . . . Parts Scanalyzed . | . . . Part Schematics Acquired . | . . . Parts Damaged . | . . . Bothacking | -11 -10 -9 ------------ Run | Yrd Mat Mat Used RIF Installer . | . . . Robots Hacked . | . . . Non-combat . | . . . Combat . | . . . Robot Hacks Applied . | . . . Relay Couplers Released . | . . . Fabnet Peak Effective % . | . . . Robots Rewired . | . . . Allies Hacked . | . . . Hacks Repelled . | . . . Allies | -11 -10 -9 -------- Run | Yrd Mat Mat Total Allies . | . . . Largest Group . | . . . Highest-Rated Group . | . . . Highest-Rated Ally . | . . . Total Orders . | . . . Ally Attacks . | . . . Total Damage . | . . . Kills . | . . . Allies Corrupted . | . . . Allies Melted . | . . . Intel | -11 -10 -9 ------- Run | Yrd Mat Mat Active Infowar (turns) 1030 | 105 465 460 Optics 297 | . . 297 Terrain 542 | 105 186 251 Seismic 489 | 24 465 . Robot Analysis Total 2 | . 2 . Derelict Logs Recovered . | . . . Drone Launches . | . . . Drone Recoveries . | . . . Exploration | -11 -10 -9 ------------- Run | Yrd Mat Mat Turns Passed 1180 | 195 517 468 Spaces Moved 551 | 91 257 203 Core 39 | 3 . 36 Treads 492 | 86 257 149 Legs . | . . . Wheels 20 | 2 . 18 Hover . | . . . Flight . | . . . Fastest Speed 50 | 50 160 80 Average Speed 154 | 154 160 147 Slowest Speed 250 | 160 160 250 Overloaded Moves . | . . . Propulsion Burnouts . | . . . Robots Hopped . | . . . Potential Cave-ins . | . . . Cave-ins Triggered . | . . . Exploration Rate (%) 18 | 3 37 16 Regions Visited 2 Branch Regions . Pre-discovered Areas . | . . . Known Exits Taken 1 | . 1 . Unknown Exits Taken 1 | 1 . . Scrap Searched . | . . . Spaces Dug . | . . . Terrain Destroyed . | . . . Melee . | . . . Projectile . | . . . AOE . | . . . Terrain Rammed . | . . . Walls Destroyed . | . . . Machines Disabled . | . . . Actions | -11 -10 -9 --------- Run | Yrd Mat Mat Total 735 | 118 306 311 Wait 59 | . 12 47 Move 549 | 90 256 203 Hop . | . . . Pick Up 5 | 2 3 . Fast Attach 16 | 7 2 7 Attach 1 | . . 1 Detach 1 | 1 . . Swap 7 | 1 3 3 Drop 3 | . 1 2 Fire 77 | 17 27 33 Melee . | . . . Ram 13 | . . 13 Kick . | . . . Crush 4 | . 2 2 Escape Stasis . | . . . Rewire . | . . . Trap . | . . . Miscellaneous . | . . . Route ------- -11/Scrapyard -10/Materials (discovered 2 exits: *Mat / [*Min]) -9/Materials History --------- Turn | Location | Event 30 | -11/Scrapyard | Discovered new exit (range 16) 196 | -11/Scrapyard | Entered Materials 296 | -10/Materials | Discovered new exit (range 13) 310 | -10/Materials | Build established: Mutant 556 | -10/Materials | Discovered new exit (range 13) 667 | -10/Materials | Central database locked down 712 | -10/Materials | Identified exit to Materials 713 | -10/Materials | Entered another Materials area 713 | -9/Materials | Evolved 2 slots: Utility x2 1121 | -9/Materials | Core integrity fell below 50% 1141 | -9/Materials | Core integrity fell below 20% 1165 | -9/Materials | Lost 3 parts (1n2w) 1181 | -9/Materials | Destroyed by G-34 Mercenary with Small Laser Last Messages --------------- 00983_ U-05 Engineer lays Concrete. 00992_ Slammed into K-01 Serf. 00992_ K-01 Serf knocked back. 01023_ K-01 Serf cleans the Fusion Modulator. 01029_ Heat Sink melted. 01029_ Y-45 Defender destroyed. 01041_ K-01 Serf collects debris. 01090_ R-06 Scavenger collects Aluminum Leg. 01101_ Particle Gun destroyed. 01111_ Lgt. Treads destroyed. 01112_ Slammed into G-47 Trooper. 01118_ Slammed into G-34 Mercenary. 01118_ Destabilizing: Core damaged (-12). 01120_ Slammed into G-34 Mercenary. 01134_ Sml. Laser destroyed. 01135_ Slammed into G-34 Mercenary. 01158_ Slammed into W-16 Scout. 01177_ Critical hit (Burn: +37). 01178_ Lgt. Nuclear Core destroyed. 01179_ Heat Sink destroyed. Map ----- +----------------------------------------------------+ | ?????????????????????????????????????????????????? | | ?????????????????????????????????????????????????? | | ?????????????????????????????????????????????????? | | ?????????????????????????????????????????????????? | | ?????????????????????????????????????????????????? | | ?????????????????????#???????????#???????????????? | | ?????????????????????????????????????????????????? | | ?????????????????????????????????????????????????? | | ?????????????????????????????????????????????????? | | ?????????????????????????????????????????????????? | | ??????????????????????############???????????????? | | ??????????????????????# # #???????????????? | | ??????????????######### # #???????????????? | | ??????????????# # # """ #???????????????? | | ??????????????# + + """ #???????????????? | | ??????????????# # # """ #???????????????? | | ??????????????######### # #???????????????? | | ?????????????????????## ########???????????????? | | ???# ############# #?????????????????????? | | ??? " #?????????????????????? | | ??? gg"T #?????????????????????? | | ??? u #?????????????????????? | | ???# ############# g #?????????????????????? | | ???????###?????######## ##????????? ???????????? | | ???? ?????# # #??????????????????????? | | ??# ????# """" #% @#??????????????????????? | | ??# ????# """" + #????#?????????????????? | | ??# #??## """" # ???????????????? | | ??# = ??#?# # " ????????????? | | ??# ????# # ???????????? | | ??# #???#####+############ #??????????? | | ??# ##?????# #??????????##???????????? | | ???? ####?#?# """ #?#?????????????????????? | | ??##############??# """ #??????#????????????????? | | ???# # ##?# """ ##??????????????????????? | | ???# ####### #???????????????????????? | | ???# # # #???????????????????????? | | ??## # ##+########????????????????????? | | ???# /% % ????????????? | | ??## #% ##+########????????????????????? | | ???# # %%% # #????????????????????????? | | ???# ###%### #??""????????????????????? | | ???# ###%#?# #????????????????????????? | | ???############%### #? ""????????????????????? | | ?#?# # ##%#########????????????????????????? | | ?#?# " ####%%% #??#????????????????????????? | | ???# """ ######### #?#?????????????????????????? | | ???# "" # #?# #?#?????????????????????????? | | ???#?""" # ### #???????????????????????????? | | ???? "" # ### #???????????????????????????? | +----------------------------------------------------+ Best States ------------- Heat Dissipation 38 Energy Generation 14 Energy Capacity 250 Matter Stores 300 Matter Capacity 350 Sight Range 18 Terrain Scan Range 16 Terrain Scan Density 10 Evasion (%) 44 Targeting Accuracy 6 Recoil Reduction 2 Item Schematics ----------------- None Robot Schematics ------------------ None Fabricated ------------ Nothing Repaired ---------- Nothing Studied --------- None Alien Tech Used ----------------- None Achievements -------------- None Challenges ------------ None Game ------ Seed FocalTransportDeflector Manual? 0 Play Time 00:11:14 Cumulative 78.5 hours Start 2026.02.10 @ 19:05:48 End 2026.02.10 @ 19:14:22 Sessions 1 Manual Loads 0 Difficulty Rogue Special Mode None Game No. 97 Rogue 97 Adventurer 0 Explorer 0 Win Type - Total 1 Types 1/0/0/0/0/0/0/0/0/0 Lore% 27 Gallery% 44 Achievement% 22 Wizard Run 0 Options --------- Layout 1 ASCII 0 Keyboard 1 Movement Numpad Keybinds 0 Fullscreen 1 Font 24/Smallcaps Map View 50x35 Zoom Use 0% Tactical HUD 1 Map Filters NONE Filters LOW_CONTRAST(5,10,15) Steam 1 RUN: c5395323-0276-4aea-8f55-f97139c38728